lending/lending_fUSD_20241120
["ID","MTS","AMOUNT","RATE_DAILY","PERIOD"]
[342767755,1732126232949,-175.947,9.799e-05,2]
[342767756,1732126232958,-837.8627,9.8e-05,2]
[342767757,1732126232969,-223.4069,9.8e-05,2]
[342767758,1732126232979,-1849.6058,9.8e-05,2]
[342767759,1732126232988,-35248.1572,9.8e-05,2]
[342767760,1732126232998,-6786.6941,9.8e-05,2]
[342767761,1732126233007,-25942.0173,9.8e-05,2]
[342767762,1732126233017,-2400.0,9.8e-05,3]
[342767763,1732126233027,-500.0,9.873e-05,2]
[342767764,1732126233036,-500.0,9.873e-05,2]
[342767765,1732126233046,-250.0,9.89e-05,2]
[342767766,1732126233055,-2500.0,9.899e-05,2]
[342767767,1732126233065,-100000.0,9.9e-05,2]
[342767768,1732126233075,-876.8254,9.9e-05,2]
[342767769,1732126233087,-11621.77452483,9.9e-05,2]
[342767770,1732126233097,-57487.1791,9.9e-05,2]
[342767771,1732126233107,-1071.0292,9.9e-05,2]
[342767772,1732126233116,-2813.4572,9.9e-05,2]
[342767773,1732126233126,-400.0,9.9e-05,3]
[342767774,1732126233135,-1000.0,9.9e-05,2]
[342767775,1732126233145,-150.0,9.936e-05,2]
[342767776,1732126233155,-505.00873855,9.973e-05,2]
[342767777,1732126233165,-500.0,9.973e-05,2]
[342767778,1732126233175,-1936.39101307,9.989e-05,2]
[342767779,1732126233184,-1936.39101314,9.99e-05,2]
[342767780,1732126233194,-1936.39101307,9.99e-05,2]
[342767781,1732126233204,-208.6943236,9.992e-05,2]
[342767782,1732126233214,-858.6586532,9.992e-05,2]
[342767783,1732126233225,-2136.0395749,9.992e-05,2]
[342767784,1732126233235,-676.9019758,9.992e-05,2]
[342767785,1732126233244,-1267.2149684,9.992e-05,2]
[342767786,1732126233254,-218.3743761,9.992e-05,2]
[342767787,1732126233263,-223.14418829,9.999e-05,2]
[342767788,1732126233273,-75771.20892861,9.999e-05,2]
[342767789,1732126233283,-670.0,0.0001,2]
[342767790,1732126233292,-194.86975502,0.0001,2]
[342767791,1732126233303,-638382.68647507,0.0001,2]
[342767792,1732126233316,-732179.90002947,0.0001,2]
[342767793,1732126233343,-788.50612465,0.0001,2]
[342767798,1732126237731,-908.7288787,0.0001,2]
[342767800,1732126237742,-3998374.24,0.0001,2]
[342767801,1732126237786,-26111.70033609,0.0001,2]
[342767802,1732126237843,-1084.09998,0.0001,2]
[342767803,1732126237855,-375648.43880941,0.0001,2]
[342767804,1732126237867,-81746.83023113,0.0001,2]
[342767805,1732126237894,-5108.79712928,0.0001,2]
[342767806,1732126237906,-1324.98326,0.0001,2]
[342767807,1732126237941,-7723.89281327,0.0001,2]
[342767808,1732126237954,-3283.17176436,0.0001,2]
[342767809,1732126237967,-1094.9,0.0001,2]
[342767810,1732126237995,-597.36228673,0.0001,2]
[342767811,1732126238158,-865959.24390557,0.0001,2]
[342767812,1732126238170,-4185.91827676,0.0001,2]
[342767813,1732126238182,-2212.41507004,0.0001,2]
[342767814,1732126238193,-4267.06473156,0.0001,2]
[342767815,1732126238204,-3562.70720313,0.0001,2]
[342767816,1732126238215,-2469.6475625,0.0001,2]
[342767817,1732126238226,-6720.20786749,0.0001,2]
[342767872,1732126239718,-939.405,0.0001,2]
[342767873,1732126239729,-987.0947389,0.0001,2]
[342767874,1732126239741,-272.44335673,0.0001,2]
[342767875,1732126239752,-233437.60413085,0.0001,2]
[342767876,1732126239764,-335.07920919,0.0001,2]
[342767877,1732126239774,-604.45595137,0.0001,2]
[342767878,1732126239813,-3338.500002,0.0001,2]
[342767879,1732126239823,-470.99640723,0.0001,2]
[342767880,1732126239851,-470.59406132,0.0001,2]
[342767881,1732126239863,-8730.90792,0.0001,2]
[342767882,1732126239874,-2199.33090348,0.0001,2]
[342767883,1732126239904,-381.63983307,0.0001,2]
[342767884,1732126239915,-356.37535028,0.0001,2]
[342767885,1732126239928,-448.6477125,0.0001,2]
[342767923,1732126242781,-269.86286693,0.0001,2]
[342767924,1732126242794,-5377.89237875,0.0001,2]
[342767925,1732126242805,-5991.53489997,0.0001,2]
[342767926,1732126242816,-1188.80060505,0.0001,2]
[342767927,1732126242827,-53344.18603805,0.0001,2]
[342767928,1732126242864,-4711.89565206,0.0001,2]
[342767929,1732126242875,-4007.79999926,0.0001,2]
[342767930,1732126242887,-188240.00941455,0.0001,2]
[342767931,1732126242898,-36235.07448292,0.0001,2]
[342767932,1732126242909,-91733.19975704,0.0001,2]
[342767933,1732126242925,-4952.16297808,0.0001,2]
[342767934,1732126242935,-2421.81472234,0.0001,2]
[342767935,1732126242947,-1852.58921021,0.0001,2]
[342767936,1732126243047,-403632.58534893,0.0001,2]
[342767937,1732126243058,-646.12000003,0.0001,2]
[342767951,1732126245605,-164.86735588,9.773e-05,2]
[342767953,1732126245617,-23366.40304412,0.0001,2]
[342767954,1732126245669,-9279.79944966,0.0001,2]
[342767955,1732126245744,-377.077714,0.0001,2]
[342767956,1732126245809,-727.4474917,0.0001,2]
[342767957,1732126245914,-812.51737,0.0001,2]
[342767958,1732126245974,-9422.14990001,0.0001,2]
[342767959,1732126267973,250.0,8.637e-05,2]
[342767960,1732126322078,-500.0,9.651e-05,2]
[342767961,1732126402762,1910.57,8.219e-05,2]
[342767963,1732126545652,-300.0,0.00028,120]
[342767964,1732126545690,-1000.0,0.000281,30]
[342767965,1732126545734,-1000.0,0.000281,30]
[342767966,1732126545774,-1000.0,0.000281,30]
[342767967,1732126545816,-1000.0,0.000281,30]
[342767968,1732126545853,-1000.0,0.000281,30]
[342767969,1732126545891,-1000.0,0.000281,30]
[342767970,1732126545930,-1000.0,0.000281,30]
[342767971,1732126545967,-1000.0,0.000281,30]
[342767972,1732126546006,-1000.0,0.000281,30]
[342767973,1732126546044,-1000.0,0.000281,30]
[342767974,1732126546082,-1000.0,0.000281,30]
[342767975,1732126546120,-1000.0,0.000281,30]
[342767976,1732126546157,-1000.0,0.000281,30]
[342767977,1732126546195,-1869.57192224,0.000281,30]
[342767978,1732126546234,-500.0,0.000281,30]
[342767979,1732126546278,-500.0,0.000281,30]
[342767980,1732126546320,-500.0,0.000281,30]
[342767981,1732126546361,-500.0,0.000281,30]
[342767982,1732126546402,-500.0,0.000281,30]
[342767983,1732126546440,-500.0,0.000281,30]
[342767984,1732126546479,-500.0,0.000281,30]
[342767985,1732126546515,-500.0,0.000281,30]
[342767986,1732126546553,-500.0,0.000281,30]
[342767987,1732126546593,-500.0,0.000281,30]
[342767988,1732126546630,-500.0,0.000281,30]
[342767989,1732126546668,-500.0,0.000281,30]
[342767990,1732126546709,-500.0,0.000281,30]
[342767991,1732126546749,-500.0,0.000281,30]
[342767992,1732126546787,-500.0,0.000281,30]
[342767993,1732126546827,-585.11114365,0.000281,30]
[342767994,1732126546866,-500.0,0.000281,30]
[342767995,1732126546905,-500.0,0.000281,30]
[342767996,1732126546944,-500.0,0.000281,30]
[342767997,1732126546982,-816.8806084,0.000281,30]
[342767998,1732126547023,-500.0,0.000281,30]
[342767999,1732126547064,-500.0,0.000281,30]
[342768000,1732126547101,-552.40762434,0.000281,30]
[342768001,1732126547139,-774.27774937,0.000281,30]
[342768002,1732126547175,-500.0,0.000281,30]
[342768003,1732126547212,-500.0,0.000281,30]
[342768004,1732126547250,-500.0,0.000281,30]
[342768005,1732126547287,-500.0,0.000281,30]
[342768006,1732126547323,-500.0,0.000281,30]
[342768007,1732126547362,-500.0,0.000281,30]
[342768008,1732126547400,-500.0,0.000281,30]
[342768009,1732126547438,-500.0,0.000281,30]
[342768010,1732126547475,-500.0,0.000281,30]
[342768011,1732126547511,-500.0,0.000281,30]
[342768012,1732126547549,-500.0,0.000281,30]
[342768013,1732126547588,-968.81723108,0.000281,30]
[342768014,1732126547626,-561.85912007,0.000281,30]
[342768015,1732126547665,-593.94284596,0.00029041,120]
[342768016,1732126547704,-151.0,0.0003,120]
[342768017,1732126547746,-151.0,0.0003,120]
[342768018,1732126547785,-400.0,0.0003,120]
[342768019,1732126547826,-500.0,0.00031,30]
[342768020,1732126547865,-500.0,0.00031,30]
[342768021,1732126547903,-500.0,0.00031,30]
[342768022,1732126547941,-500.0,0.00031,30]
[342768023,1732126547978,-999.00975,0.00031,30]
[342768024,1732126548014,-500.0,0.00031,30]
[342768025,1732126548051,-500.0,0.00031,30]
[342768026,1732126548092,-500.0,0.00031,30]
[342768027,1732126548132,-524.07792,0.00031,30]
[342768028,1732126548172,-500.0,0.00031,30]
[342768029,1732126548212,-954.35018931,0.00031,30]
[342768030,1732126548252,-500.0,0.00031,30]
[342768031,1732126548291,-500.0,0.00031,30]
[342768032,1732126548330,-500.0,0.00031,30]
[342768033,1732126548370,-539.62022505,0.00031,30]
[342768034,1732126548410,-200.0,0.00031,120]
[342768035,1732126548448,-1000.0,0.00031,30]
[342768036,1732126548487,-1000.0,0.00031,30]
[342768037,1732126548524,-1000.0,0.00031,30]
[342768038,1732126548563,-1000.0,0.00031,30]
[342768039,1732126548601,-1000.0,0.00031,30]
[342768040,1732126548640,-1000.0,0.00031,30]
[342768041,1732126548679,-1000.0,0.00031,30]
[342768042,1732126548717,-1000.0,0.00031,30]
[342768043,1732126548756,-1000.0,0.00031,30]
[342768044,1732126548795,-1000.0,0.00031,30]
[342768045,1732126548834,-1000.0,0.00031,30]
[342768046,1732126548873,-1000.0,0.00031,30]
[342768047,1732126548912,-1000.0,0.00031,30]
[342768048,1732126548949,-1000.0,0.00031,30]
[342768049,1732126548986,-500.0,0.00031,30]
[342768050,1732126549024,-500.0,0.00031,30]
[342768051,1732126549066,-683.72741784,0.00031,30]
[342768052,1732126549337,-500.0,0.00031,30]
[342768053,1732126549378,-500.0,0.00031,30]
[342768054,1732126549418,-500.0,0.00031,30]
[342768055,1732126549457,-500.0,0.00031,30]
[342768056,1732126549494,-500.0,0.00031,30]
[342768057,1732126549532,-500.0,0.00031,30]
[342768058,1732126549568,-500.0,0.00031,30]
[342768059,1732126549606,-500.0,0.00031,30]
[342768060,1732126549642,-500.0,0.00031,30]
[342768061,1732126549677,-919.35942371,0.00031,30]
[342768062,1732126549715,-500.0,0.00031,30]
[342768063,1732126549753,-500.0,0.00031,30]
[342768064,1732126549796,-500.0,0.00031,30]
[342768065,1732126549845,-500.0,0.00031,30]
[342768066,1732126549885,-518.67905015,0.00031,30]
[342768067,1732126549925,-500.0,0.00031,30]
[342768068,1732126549964,-500.0,0.00031,30]
[342768069,1732126550003,-500.0,0.00031,30]
[342768070,1732126550041,-500.0,0.00031,30]
[342768071,1732126550079,-500.0,0.00031,30]
[342768072,1732126550118,-500.0,0.00031,30]
[342768073,1732126550159,-500.0,0.00031,30]
[342768074,1732126550197,-500.0,0.00031,30]
[342768075,1732126550238,-500.0,0.00031,30]
[342768076,1732126550276,-500.0,0.00031,30]
[342768077,1732126550319,-500.0,0.00031,30]
[342768078,1732126550358,-500.0,0.00031,30]
[342768079,1732126550397,-500.0,0.00031,30]
[342768080,1732126550437,-500.0,0.00031,30]
[342768081,1732126550480,-500.0,0.00031,30]
[342768082,1732126550520,-500.0,0.00031,30]
[342768083,1732126550559,-500.0,0.00031,30]
[342768084,1732126550600,-500.0,0.00031,30]
[342768085,1732126550639,-500.0,0.00031,30]
[342768086,1732126550679,-500.0,0.00031,30]
[342768087,1732126550723,-500.0,0.00031,30]
[342768088,1732126550772,-500.0,0.00031,30]
[342768089,1732126550810,-500.0,0.00031,30]
[342768090,1732126550867,-500.0,0.00031,30]
[342768091,1732126550905,-500.0,0.00031,30]
[342768092,1732126550944,-500.0,0.00031,30]
[342768093,1732126550981,-277.95604525,0.000314,30]
[342768094,1732126551018,-89383.54292115,0.00032,90]
[342768095,1732126551053,-266432.6052067,0.00032,90]
[342768096,1732126551091,-2131.6961707,0.00032,30]
[342768097,1732126551128,-300.0,0.00032,120]
[342768098,1732126551167,-509.765554,0.00032997,120]
[342768099,1732126551205,-500.0,0.00033,30]
[342768100,1732126551244,-500.0,0.00033,30]
[342768101,1732126551284,-500.0,0.00033,30]
[342768102,1732126551324,-500.0,0.00033,30]
[342768103,1732126551363,-500.0,0.00033,30]
[342768104,1732126551403,-500.0,0.00033,30]
[342768105,1732126551443,-500.0,0.00033,30]
[342768106,1732126551482,-500.0,0.00033,30]
[342768107,1732126551520,-500.0,0.00033,30]
[342768108,1732126551560,-500.0,0.00033,30]
[342768109,1732126551605,-500.0,0.00033,30]
[342768110,1732126551643,-812.00606504,0.00033,30]
[342768111,1732126551680,-500.0,0.00033,30]
[342768112,1732126551717,-500.0,0.00033,30]
[342768113,1732126551755,-500.0,0.00033,30]
[342768114,1732126551793,-500.0,0.00033,30]
[342768115,1732126551830,-719.61,0.00033151,120]
[342768116,1732126551871,-156.46,0.000335,31]
[342768117,1732126551913,-156.46,0.000335,31]
[342768118,1732126551956,-300.0,0.00034,120]
[342768119,1732126551994,-150.0,0.00034,60]
[342768120,1732126552033,-1003.0,0.000342,30]
[342768121,1732126552073,-600.0,0.000342,120]
[342768122,1732126552112,-3000.0,0.00034268,31]
[342768123,1732126552151,-151.0,0.00034274,120]
[342768124,1732126552196,-1326.722,0.00034849,40]
[342768125,1732126552235,-1543.56185519,0.00035,30]
[342768126,1732126552275,-150.0,0.00035,120]
[342768127,1732126552317,-1500.0,0.00035616,120]
[342768128,1732126552355,-400.0,0.00036,120]
[342768129,1732126552396,-1236.9532,0.00036263,30]
[342768130,1732126552436,-466.409,0.0003692,100]
[342768131,1732126552475,-200.0,0.00037,120]
[342768132,1732126552513,-400.0,0.00038,120]
[342768133,1732126552551,-1088.53870169,0.00038,120]
[342768134,1732126552591,-435.17586997,0.00038,120]
[342768135,1732126552629,-160.864485,0.000382,120]
[342768136,1732126552667,-1003.51718195,0.000384,30]
[342768137,1732126552707,-151.0,0.00038548,120]
[342768138,1732126552748,-6086.36032822,0.0003888,90]
[342768139,1732126552787,-154.26599964,0.00039,120]
[342768140,1732126552825,-145561.0891488,0.00039,30]
[342768141,1732126552863,-466.432,0.000391,120]
[342768142,1732126552901,-500.0,0.00039142,120]
[342768143,1732126552938,-150.0,0.000394,120]
[342768144,1732126552975,-160.864485,0.000398,60]
[342768145,1732126553014,-3000.0,0.00039876,36]
[342768146,1732126553053,-5000.0,0.000399,30]
[342768147,1732126553092,-306.34,0.0003997,41]
[342768148,1732126553129,-19245.81518639,0.0004,30]
[342768149,1732126553167,-477.12749073,0.0004,30]
[342768150,1732126553205,-320.98177848,0.0004,30]
[342768151,1732126553244,-1503.04771359,0.0004,30]
[342768152,1732126553283,-65072.53718123,0.0004,30]
[342768153,1732126553323,-1491.97933144,0.0004,30]
[342768154,1732126553365,-283.81354856,0.0004,120]
[342768155,1732126553405,-191.60855189,0.0004,30]
[342768156,1732126553669,-233644.49148979,0.0004,30]
[342768157,1732126553714,-1180.53465184,0.0004,120]
[342768158,1732126553753,-473.71627468,0.0004,120]
[342768159,1732126553794,-640.6975596,0.0004,30]
[342768160,1732126553835,-2038.87010773,0.0004,120]
[342768161,1732126553875,-82641.59040966,0.0004,30]
[342768162,1732126553918,-400.0,0.0004,120]
[342768163,1732126553959,-150.0,0.0004,120]
[342768164,1732126554000,-1088.53870169,0.0004,120]
[342768165,1732126554041,-435.17586997,0.0004,120]
[342768166,1732126554080,-1656.96340421,0.000405,120]
[342768167,1732126554120,-271.3301357,0.00040998,120]
[342768168,1732126554160,-8651.0,0.00041,120]
[342768169,1732126554201,-361.27159968,0.00041,120]
[342768170,1732126554241,-3006.2847256,0.00041,60]
[342768171,1732126554283,-860.37806878,0.00041,60]
[342768172,1732126554332,-3696.0,0.00041,117]
[342768173,1732126558141,150.0,0.000405,120]
[342768174,1732126558200,500.0,0.000405,120]
[342768175,1732126558383,500.0,0.00040998,120]
[342768176,1732126558427,150.0,0.00040998,120]
[342768177,1732126558617,150.0,0.00041,120]
[342768178,1732126558759,500.0,0.00041,120]
[342768179,1732126559577,150.0,0.00041,30]
[342768180,1732126560377,-196.0,0.00034439,30]
[342768181,1732126560439,-3126.9595447,0.00034439,60]
[342768182,1732126560496,-4788.148512,0.00034439,120]
[342768183,1732126560548,-437.1328517,0.00034439,120]
[342768184,1732126560605,-618.8341807,0.00034439,120]
[342768185,1732126560649,-196.0,0.00034439,30]
[342768186,1732126560700,-1000.0,0.00034439,30]
[342768187,1732126560749,-5100.0,0.00034439,35]
[342768188,1732126560802,-920.22562995,0.00034439,120]
[342768189,1732126560853,-1088.53870169,0.00034439,120]
[342768190,1732126560898,-435.17586997,0.00034439,120]
[342768191,1732126560944,-196.0,0.00034439,30]
[342768192,1732126560991,-201.2,0.00034439,30]
[342768193,1732126561036,-201.6,0.00034439,30]
[342768194,1732126564591,800.0,0.00041014,120]
[342768195,1732126565921,150.0,0.00040914,120]
[342768196,1732126565976,500.0,0.00041014,120]
[342768197,1732126566079,500.0,0.00041014,120]
[342768198,1732126566477,150.0,0.00040914,120]
[342768199,1732126566526,150.0,0.00041014,120]
[342768200,1732126566864,150.0,0.00040914,120]
[342768201,1732126567282,150.0,0.00040914,120]
[342768202,1732126568945,151.0,0.00040914,30]
[342768203,1732126570313,179.022,0.00040914,30]
[342768204,1732126580946,158.555,0.00040914,30]
[342768205,1732127099879,1849.71,8.219e-05,2]
[342768208,1732127229143,-151.12,8.637e-05,2]
[342768209,1732127229165,-250.0,8.863e-05,2]
[342768210,1732127229185,-250.0,8.874e-05,2]
[342768211,1732127229207,-250.0,8.955e-05,2]
[342768212,1732127229231,-454.17,8.984e-05,2]
[342768213,1732127229252,-2335.16215045,9.068e-05,2]
[342768214,1732127241152,-364.02080156,9.068e-05,2]
[342768223,1732127347103,-300.0,8.95e-05,2]
[342768224,1732127347125,-11918.93135127,8.951e-05,2]
[342768227,1732127350099,-6659.66447561,8.951e-05,2]
[342768228,1732127352129,-3661.40417312,8.951e-05,2]
[342768229,1732127352149,-2295.454931,8.992e-05,2]
[342768265,1732127431824,-294.303997,9.038e-05,2]
[342768269,1732127431892,-1321.14999999,9.038e-05,2]
[342768270,1732127431963,-555.05850133,9.038e-05,2]
[342768271,1732127431975,-2905.21750168,9.038e-05,2]
[342768272,1732127431988,-2003.99704799,9.068e-05,2]
[342768273,1732127431998,-1000.0,9.182e-05,2]
[342768274,1732127432007,-167.12,9.184e-05,2]
[342768275,1732127432017,-300.0,9.335e-05,2]
[342768276,1732127432028,-7658.32264406,9.336e-05,2]
[342768277,1732127432038,-1281.781,9.572e-05,2]
[342768278,1732127432048,-274.0,9.572e-05,2]
[342768279,1732127432058,-1615.3421,9.6e-05,2]
[342768280,1732127432072,-350.7286,9.6e-05,2]
[342768281,1732127432082,-760.3732,9.6e-05,2]
[342768282,1732127432092,-400.0,9.6e-05,2]
[342768283,1732127432102,-1108.7422,9.6e-05,2]
[342768284,1732127432112,-150.0,9.699e-05,2]
[342768285,1732127432122,-562.11784954,9.7e-05,2]
[342768286,1732127432134,-1622.46305277,9.7e-05,2]
[342768287,1732127432145,-315.41909769,9.7e-05,2]
[342768288,1732127432155,-6009.18090227,9.7e-05,2]
[342768289,1732127432175,-1597.26584652,9.7e-05,2]
[342768290,1732127432191,-7656.82081164,9.7e-05,2]
[342768291,1732127432231,-376.83,9.7e-05,2]
[342768292,1732127432243,-34224.56401672,9.7e-05,2]
[342768295,1732127432266,-540.0,9.7e-05,2]
[342768300,1732127438377,-397.93567801,9.7e-05,2]
[342768301,1732127438401,-142123.33144484,9.7e-05,2]
[342768302,1732127438412,-418.5031,9.7e-05,2]
[342768303,1732127438422,-17509.9307,9.8e-05,2]
[342768304,1732127438431,-1986.0653,9.8e-05,2]
[342768305,1732127438445,-250.0,9.89e-05,2]
[342768306,1732127438455,-2500.0,9.9e-05,2]
[342768307,1732127438465,-2500.0,9.9e-05,2]
[342768308,1732127438475,-150.0,9.932e-05,2]
[342768309,1732127438485,-500.0,9.973e-05,2]
[342768310,1732127438495,-1355.47370923,9.99e-05,2]
[342768313,1732127438505,-546.33058622,9.999e-05,2]
[342768314,1732127438515,-25128.17325323,9.999e-05,2]
[342768315,1732127438525,-611.0,0.0001,2]
[342768316,1732127438535,-169.05305807,0.0001,2]
[342768317,1732127438546,-723844.16451066,0.0001,2]
[342768318,1732127438560,-492498.89183799,0.0001,2]
[342768319,1732127438574,-31237.58315375,0.0001,2]
[342768320,1732127438703,-2501794.62641554,0.0001,2]
[342768321,1732127438713,-4948.55243684,0.0001,2]
[342768322,1732127438723,-132177.77190102,0.0001,2]
[342768323,1732127438732,-1000.0,0.0001,2]
[342768324,1732127438742,-500000.0,0.0001,2]
[342768325,1732127438752,-1000.0,0.0001,2]
[342768326,1732127438762,-1000.0,0.0001,2]
[342768327,1732127438771,-1000.0,0.0001,2]
[342768328,1732127438781,-1000.0,0.0001,2]
[342768329,1732127438791,-1000.0,0.0001,2]
[342768330,1732127438800,-2000.0,0.0001,2]
[342768331,1732127438810,-200.0,0.0001,2]
[342768332,1732127438820,-166.82955001,0.0001,2]
[342768333,1732127438830,-171.06090755,0.0001,2]
[342768334,1732127438840,-988.65512134,0.0001,2]
[342768335,1732127438850,-3000.0,0.0001,2]
[342768336,1732127438859,-45645330.4664311,0.0001,2]
[342768337,1732127438871,-27905.94326183,0.0001,2]
[342768338,1732127438882,-63128.8668483,0.0001,2]
[342768339,1732127438935,-629.74,0.0001,2]
[342768340,1732127438947,-11218.4922,0.0001,2]
[342768341,1732127438959,-345.92735488,0.0001,2]
[342768342,1732127438971,-9180.8712,0.0001,2]
[342768343,1732127438984,-493.26,0.0001,2]
[342768344,1732127438997,-469.693,0.0001,2]
[342768345,1732127439026,-4282.87183161,0.0001,2]
[342768347,1732127439815,-530.38420294,0.0001,2]
[342768350,1732127439900,-3982.55,0.0001,2]
[342768351,1732127439913,-1500.0,0.0001,2]
[342768352,1732127439926,-7651.91581175,0.0001,2]
[342768353,1732127439939,-431.78570185,0.0001,2]
[342768354,1732127439951,-2784.3599997,0.0001,2]
[342768355,1732127439963,-1237.95308463,0.0001,2]
[342768356,1732127440081,-5238.76860355,0.0001,2]
[342768357,1732127440093,-366.498113,0.0001,2]
[342768358,1732127440104,-397.92228921,0.0001,2]
[342768359,1732127440116,-941.41999846,0.0001,2]
[342768360,1732127440166,-257.82970698,0.0001,2]
[342768361,1732127440177,-392.7750027,0.0001,2]
[342768379,1732127442984,-2469.66950832,0.0001,2]
[342768380,1732127443011,-188249.99058724,0.0001,2]
[342768381,1732127443043,-17514.92551708,0.0001,2]
[342768382,1732127443055,-1044.3,0.0001,2]
[342768383,1732127443065,-8586.6578819,0.0001,2]
[342768384,1732127443078,-3500.0,0.0001,2]
[342768385,1732127443089,-1379.61944495,0.0001,2]
[342768386,1732127443206,-5625.12,0.0001,2]
[342768399,1732127445881,-364.22039081,9.999e-05,2]
[342768400,1732127445891,-340.95960859,0.0001,2]
[342768401,1732127445949,-68350.23083279,0.0001,2]
[342768402,1732127446025,-1199.39416244,0.0001,2]
[342768403,1732127446038,-1057.6,0.0001,2]
[342768404,1732127446063,-1237.04795803,0.0001,2]
[342768405,1732127446075,-55630.9113,0.0001,2]
[342768406,1732127446086,-388.11002588,0.0001,2]
[342768407,1732127446102,-563.52051373,0.0001,2]
[342768408,1732127446204,-410.05023889,0.0001,2]
[342768409,1732127446216,-535.08472963,0.0001,2]
[342768410,1732127446258,-2047.75000387,0.0001,2]
[342768411,1732127446269,-2212.88348996,0.0001,2]
[342768412,1732127446317,-5399.41906484,0.0001,2]
[342768413,1732127446329,-4709.18144796,0.0001,2]
[342768414,1732127446340,-612.61707937,0.0001,2]
[342768415,1732127446352,-4874.34102155,0.0001,2]
[342768416,1732127446364,-1529.57093166,0.0001,2]
[342768417,1732127746106,39797.68976078,9.705e-05,30]
[342768422,1732127911105,1857.95,8.219e-05,2]
[342768429,1732128250894,-700.0,0.000281,30]
[342768430,1732128250919,-700.0,0.000281,30]
[342768431,1732128250943,-700.0,0.000281,30]
[342768432,1732128250972,-700.0,0.000281,30]
[342768433,1732128250996,-700.0,0.000281,30]
[342768434,1732128251021,-700.0,0.000281,30]
[342768435,1732128251045,-700.0,0.000281,30]
[342768436,1732128251069,-700.0,0.000281,30]
[342768437,1732128251093,-700.0,0.000281,30]
[342768438,1732128251117,-500.0,0.000281,30]
[342768439,1732128251141,-700.0,0.000281,30]
[342768440,1732128251165,-700.0,0.000281,30]
[342768441,1732128251188,-500.0,0.000281,30]
[342768442,1732128251212,-700.0,0.000281,30]
[342768443,1732128251241,-500.0,0.000281,30]
[342768444,1732128251267,-884.12089365,0.000281,30]
[342768445,1732128251291,-500.0,0.000281,30]
[342768446,1732128251315,-500.0,0.000281,30]
[342768447,1732128251340,-500.0,0.000281,30]
[342768448,1732128251363,-500.0,0.000281,30]
[342768449,1732128251387,-500.0,0.000281,30]
[342768450,1732128251413,-774.27774937,0.000281,30]
[342768451,1732128251437,-816.8806084,0.000281,30]
[342768452,1732128251461,-500.0,0.000281,30]
[342768453,1732128251489,-500.0,0.000281,30]
[342768454,1732128251512,-500.0,0.000281,30]
[342768455,1732128251536,-552.40762434,0.000281,30]
[342768456,1732128251559,-500.0,0.000281,30]
[342768457,1732128251583,-500.0,0.000281,30]
[342768458,1732128251607,-500.0,0.000281,30]
[342768459,1732128251633,-500.0,0.000281,30]
[342768460,1732128251657,-500.0,0.000281,30]
[342768461,1732128251682,-500.0,0.000281,30]
[342768462,1732128251705,-516.20930938,0.000281,30]
[342768463,1732128251733,-500.0,0.000281,30]
[342768464,1732128251758,-500.0,0.000281,30]
[342768465,1732128251782,-500.0,0.000281,30]